bitfinex/quotes_SOLUSD_20260223
["timestamp","ask_amount","ask_price","bid_price","bid_amount"]
[1771867926508,0.05423925,78.339,78.291,0.74490816]
[1771867926693,12.33403325,78.33,78.29,12.33403325]
[1771867926899,12.33403325,78.33,78.291,0.74490816]
[1771867927099,0.05394354,78.309,78.283,0.74490816]
[1771867928616,210.60693085,78.345,78.285,0.74490816]
[1771867928617,12.76849276,78.318,78.285,0.74490816]
[1771867928920,0.05365121,78.317,78.285,0.74490816]
[1771867929117,12.76849276,78.318,78.265,0.74490816]
[1771867929118,0.05336225,78.299,78.265,0.74490816]
[1771867929302,12.33403325,78.3,78.265,0.74490816]
[1771867930316,12.33403325,78.28,78.258,0.74490816]
[1771867930501,12.33403325,78.28,78.252,0.74490816]
[1771867930502,12.77481827,78.279,78.252,0.74490816]
[1771867932019,63.85265144,78.306,78.225,5.36086188]
[1771867932020,0.05279424,78.29,78.254,0.74490816]
[1771867932324,95.7707631,78.312,78.222,0.74490816]
[1771867932325,0.05251512,78.275,78.222,0.74490816]
[1771867932508,12.33403325,78.3,78.221,44.74501731]
[1771867932509,12.33403325,78.28,78.251,0.74490816]
[1771867934424,12.77378806,78.286,78.253,0.74490816]
[1771867934923,12.33403325,78.29,78.253,0.74490816]
[1771867935107,0.05196646,78.298,78.252,44.72729131]
[1771867935108,12.77218154,78.296,78.261,0.74490816]
[1771867935308,12.33403325,78.29,78.261,0.74490816]
[1771867935710,12.82387839,78.296,78.261,0.74490816]
[1771867935904,12.77055903,78.306,78.271,0.74490816]
[1771867936306,12.77055903,78.306,78.27,12.33403325]
[1771867936307,12.33403325,78.31,78.273,0.74490816]
[1771867936506,12.33403325,78.31,78.281,0.74490816]
[1771867937423,12.76963744,78.311,78.283,0.74490816]
[1771867937609,12.76927202,78.313,78.283,0.74490816]
[1771867937928,12.33403325,78.31,78.283,0.74490816]
[1771867938428,12.76927202,78.313,78.283,0.74490816]
[1771867939421,12.76927202,78.313,78.255,5.36086188]
[1771867939422,0.05039453,78.289,78.255,0.74846369]
[1771867939608,0.05039453,78.289,78.218,102.27772743]
[1771867939609,0.05039453,78.289,78.257,0.74846369]
[1771867939814,12.33403325,78.28,78.253,0.74846369]
[1771867940032,0.05014298,78.279,78.253,0.74846369]
[1771867940212,12.33403325,78.27,78.253,0.74846369]
[1771867940526,0.05014298,78.279,78.253,0.74846369]
[1771867940821,0.04989431,78.287,78.254,0.74490816]
[1771867941025,12.33403325,78.28,78.254,0.74490816]
[1771867941415,12.77481827,78.279,78.254,0.74490816]
[1771867942029,12.33403325,78.28,78.256,0.74490816]
[1771867942727,12.33403325,78.29,78.256,0.74490816]
[1771867942925,12.33403325,78.28,78.261,0.74490816]
[1771867943422,12.33403325,78.27,78.242,0.74490816]
[1771867943621,12.33403325,78.27,78.244,0.74490816]
[1771867944030,25.1104502,78.27,78.244,0.74490816]
[1771867944230,25.15937807,78.27,78.244,0.74490816]
[1771867944437,12.33403325,78.26,78.239,12.78131887]
[1771867944726,12.33403325,78.26,78.236,0.74490816]
[1771867944727,12.33403325,78.26,78.24,12.78118609]
[1771867944910,12.33403325,78.26,78.236,0.74490816]
[1771867945107,12.33403325,78.26,78.238,0.74490816]
[1771867945526,0.04869316,78.268,78.231,0.74490816]
[1771867945735,12.33403325,78.28,78.241,0.74490816]
[1771867946115,12.33403325,78.29,78.251,0.74490816]
[1771867946314,12.33403325,78.29,78.225,5.36086188]
[1771867946315,12.7723708,78.294,78.261,0.74490816]
[1771867946531,12.77177954,78.298,78.261,0.74490816]
[1771867947435,12.33403325,78.29,78.235,5.36086188]
[1771867947619,0.75598994,78.279,78.24,12.33403325]
[1771867948019,12.33403325,78.28,78.24,12.33403325]
[1771867948336,13.09002319,78.28,78.24,12.33403325]
[1771867948534,0.75598994,78.28,78.24,12.33403325]
[1771867948736,13.09002319,78.28,78.24,12.33403325]
[1771867949049,12.33403325,78.28,78.25,12.33403325]
[1771867949337,0.75598994,78.294,78.221,159.80363327]
[1771867949519,12.77155519,78.299,78.262,0.70893541]
[1771867950034,0.75598994,78.304,78.271,0.70893541]
[1771867950223,12.33403325,78.31,78.281,0.70893541]
[1771867950224,0.75598994,78.308,78.281,0.70893541]
[1771867950436,0.75598994,78.308,78.272,0.70893541]
[1771867951326,12.76992427,78.309,78.272,0.70893541]
[1771867951538,12.33403325,78.31,78.25,12.33403325]
[1771867951539,12.76913709,78.314,78.283,0.70893541]
[1771867951917,13.52512703,78.314,78.283,0.70893541]
[1771867952142,12.33403325,78.31,78.283,0.70893541]
[1771867952344,0.75598994,78.309,78.283,0.70893541]
[1771867953433,0.75598994,78.317,78.283,0.70893541]
[1771867953642,0.75598994,78.315,78.285,0.70893541]
[1771867953823,12.33403325,78.31,78.285,0.70893541]
[1771867954143,0.75598994,78.315,78.285,0.70893541]
[1771867954319,12.33403325,78.32,78.285,0.70893541]
[1771867954843,0.75598994,78.319,78.281,0.70893541]
[1771867955227,12.33403325,78.31,78.281,0.70893541]
[1771867955424,12.33403325,78.31,78.28,12.33403325]
[1771867955425,25.10224429,78.32,78.291,0.70893541]
[1771867955928,0.75598994,78.319,78.291,0.70893541]
[1771867956739,0.75598994,78.309,78.282,0.70893541]
[1771867956941,12.33403325,78.29,78.266,0.70893541]
[1771867957121,0.75598994,78.292,78.258,12.77821862]
[1771867957122,12.33403325,78.28,78.258,0.70893541]
[1771867957321,0.75598994,78.289,78.258,0.70893541]
[1771867957722,0.75598994,78.289,78.261,0.70893541]
[1771867957917,12.33403325,78.29,78.261,0.70893541]
[1771867958123,12.77318652,78.289,78.261,0.70893541]
[1771867958428,12.77318652,78.289,78.234,0.70893541]
[1771867958429,0.75598994,78.269,78.234,0.70893541]
[1771867958632,0.75598994,78.278,78.234,0.70893541]
[1771867958938,0.75598994,78.278,78.241,0.70893541]
[1771867959123,12.33403325,78.28,78.241,0.70893541]
[1771867959321,12.33403325,78.28,78.251,0.70893541]
[1771867959744,13.53097141,78.278,78.251,0.70893541]
[1771867960335,0.75598994,78.278,78.251,0.70893541]
[1771867961145,0.75598994,78.269,78.242,0.70893541]
[1771867961623,13.09002319,78.26,78.232,0.70893541]
[1771867961828,12.77824631,78.258,78.232,0.70893541]
[1771867962240,13.53423625,78.258,78.232,0.70893541]
[1771867963055,0.75598994,78.258,78.233,0.70893541]
[1771867963226,12.33403325,78.26,78.233,0.70893541]
[1771867963423,25.11206332,78.26,78.233,0.70893541]
[1771867963626,25.86805326,78.26,78.233,0.70893541]
[1771867963830,25.86805326,78.26,78.22,0.63]
[1771867963831,0.75598994,78.249,78.22,0.63]
[1771867964024,0.75598994,78.249,78.221,0.70893541]
[1771867964226,12.33403325,78.26,78.221,0.70893541]
[1771867964420,12.33403325,78.26,78.231,0.70893541]
[1771867964659,25.11200996,78.26,78.231,0.70893541]
[1771867965847,12.33403325,78.25,78.221,0.70893541]
[1771867966051,12.77844726,78.257,78.223,0.70893541]
[1771867966829,12.33403325,78.26,78.223,0.70893541]
[1771867967045,12.77694017,78.266,78.23,12.33403325]
[1771867967244,12.77694017,78.266,78.231,0.70893541]
[1771867967442,12.34159573,78.27,78.231,0.70893541]
[1771867967640,12.77645044,78.269,78.241,0.70893541]
[1771867968032,12.773676,78.286,78.243,0.75240739]
[1771867968352,0.74639323,78.269,78.243,0.75240739]
[1771867969051,12.34159573,78.27,78.243,0.75240739]
[1771867969553,0.74639323,78.275,78.243,0.75240739]
[1771867969926,0.74639323,78.283,78.243,0.75240739]
[1771867970125,12.77481827,78.279,78.245,0.75240739]
[1771867970435,12.77481827,78.279,78.251,0.75240739]
[1771867970948,0.74639323,78.259,78.231,0.75240739]
[1771867971246,12.34159573,78.27,78.235,0.75240739]
[1771867971448,12.34159573,78.26,78.235,0.75240739]
[1771867971853,0.74639323,78.269,78.235,0.75240739]
[1771867972155,13.08798896,78.25,78.221,0.75240739]
[1771867972457,0.74639323,78.25,78.223,0.75240739]
[1771867972661,0.74639323,78.259,78.223,0.75240739]
[1771867972965,12.34159573,78.26,78.223,0.75240739]
[1771867973249,12.77661368,78.268,78.241,0.75240739]
[1771867974835,0.74639323,78.275,78.241,0.75240739]
[1771867975155,0.74639323,78.275,78.22,0.63]
[1771867975156,12.34159573,78.29,78.251,0.75240739]
[1771867975366,12.77318652,78.289,78.261,0.75240739]
[1771867976548,13.51843777,78.296,78.261,0.75240739]
[1771867976864,12.77204454,78.296,78.271,0.75240739]
[1771867977201,12.34159573,78.3,78.271,0.75240739]
[1771867977202,12.77140556,78.3,78.271,0.75240739]
[1771867977374,12.77068713,78.305,78.271,0.75240739]
[1771867977666,12.77068713,78.305,78.281,0.75240739]
[1771867977838,12.76998787,78.309,78.281,0.75240739]
[1771867978662,0.74639323,78.299,78.268,0.75240739]
[1771867978961,0.74639323,78.299,78.271,0.75240739]
[1771867979658,0.74639323,78.307,78.271,0.75240739]
[1771867980757,12.76998787,78.309,78.281,0.75240739]
[1771867981059,13.51436095,78.321,78.291,0.75240739]
[1771867981258,12.76796772,78.321,78.291,0.75240739]
[1771867981458,0.74639323,78.319,78.281,0.75240739]
[1771867982058,0.74639323,78.299,78.267,0.75240739]
[1771867982561,0.74639323,78.299,78.27,13.09400312]
[1771867982857,0.74639323,78.297,78.27,0.75240739]
[1771867983153,0.74639323,78.297,78.254,31.94708443]
[1771867983154,12.34159573,78.28,78.254,0.75240739]
[1771867983554,0.74639323,78.283,78.254,0.75240739]
[1771867983958,0.74639323,78.289,78.261,0.75240739]
[1771867984261,0.74639323,78.297,78.261,0.75240739]
[1771867984638,0.74639323,78.306,78.271,0.75240739]
[1771867984839,12.77057659,78.305,78.271,0.75240739]
[1771867985743,12.77057659,78.305,78.281,0.75240739]
[1771867985949,13.08798896,78.33,78.291,0.75240739]
[1771867986150,0.74639323,78.331,78.301,0.75240739]
[1771867987043,25.10809643,78.33,78.301,0.75240739]
[1771867987238,25.10809643,78.33,78.272,5.36086188]
[1771867987239,0.74639323,78.367,78.32,12.34159573]
[1771867987460,0.74639323,78.367,78.331,0.75240739]
[1771867987850,12.34159573,78.36,78.331,0.75240739]
[1771867988046,0.74639323,78.367,78.331,0.75240739]
[1771867988256,0.74639323,78.367,78.33,12.34159573]
[1771867988257,0.74639323,78.389,78.361,0.75240739]
[1771867988561,12.54159573,78.39,78.318,3.69383402]
[1771867988562,0.2,78.39,78.371,0.75240739]
[1771867988971,12.34159573,78.38,78.352,0.75240739]
[1771867989143,12.34159573,78.38,78.34,12.34159573]
[1771867989342,0.74639323,78.388,78.35,12.34159573]
[1771867989551,0.74639323,78.388,78.36,12.34159573]
[1771867991066,0.74639323,78.386,78.36,12.34159573]
[1771867991574,0.2,78.39,78.37,12.34159573]
[1771867991746,0.2,78.39,78.371,0.75240739]
[1771867992198,0.2,78.4,78.37,12.34159573]
[1771867992199,12.75526473,78.399,78.372,0.75240739]
[1771867992342,0.74639323,78.398,78.364,0.75240739]
[1771867992546,12.75526473,78.399,78.364,0.75240739]
[1771867992547,13.08798896,78.39,78.364,0.75240739]
[1771867992963,0.74639323,78.389,78.352,0.75240739]
[1771867993164,0.74639323,78.387,78.354,0.75240739]
[1771867993470,12.75542743,78.398,78.371,0.75240739]
[1771867994966,0.2,78.4,78.39,12.34159573]
[1771867995361,0.2,78.4,78.381,0.75240739]
[1771867995968,0.2,78.4,78.39,12.34159573]
[1771867996172,0.2,78.4,78.381,0.75240739]
[1771867996375,13.50165796,78.399,78.371,0.75240739]
[1771867996764,13.50165796,78.399,78.38,12.34159573]
[1771867997158,12.75526473,78.399,78.38,12.34159573]
[1771867997582,0.2,78.4,78.381,0.75240739]
[1771867997815,0.2,78.4,78.358,5.64518502]
[1771867997816,0.73173181,78.398,78.358,5.64518502]
[1771867998080,0.2,78.4,78.39,12.34159573]
[1771867998284,12.75207849,78.419,78.391,0.70862611]
[1771867998587,12.75207849,78.419,78.4,12.34159573]
[1771867998786,12.75207849,78.419,78.391,0.70862611]
[1771867998990,12.75207849,78.419,78.4,12.34159573]
[1771867999178,0.73173181,78.431,78.4,12.34159573]
[1771867999721,0.73173181,78.431,78.391,0.70862611]
[1771867999722,0.73173181,78.407,78.372,0.70862611]
[1771868000179,0.73173181,78.407,78.373,12.75949625]
[1771868000601,0.73173181,78.407,78.352,5.36086188]
[1771868000602,0.73173181,78.407,78.25,12.34159573]
[1771868000880,0.70947364,78.389,78.36,12.34159573]
[1771868001386,44.63830221,78.408,78.34,12.34159573]
[1771868001387,0.70947364,78.369,78.34,12.34159573]
[1771868001560,0.70947364,78.369,78.333,0.71586433]
[1771868001761,0.70947364,78.367,78.333,0.71586433]
[1771868002388,0.70947364,78.367,78.34,12.34159573]
[1771868002859,0.70947364,78.367,78.33,12.34159573]
[1771868003058,0.47951362,78.367,78.34,12.34159573]
[1771868003873,51.02363379,78.396,78.304,51.08285127]
[1771868003874,12.75689191,78.389,78.36,12.34159573]
[1771868004463,12.75689191,78.389,78.351,0.71586433]
[1771868004464,44.64912168,78.389,78.351,0.71586433]
[1771868004663,44.64912168,78.389,78.36,12.34159573]
[1771868004889,44.64912168,78.389,78.351,0.71586433]
[1771868005092,0.70947364,78.388,78.351,0.71586433]
[1771868005579,0.70947364,78.388,78.36,13.05746006]
[1771868005786,0.70947364,78.386,78.351,0.71586433]
[1771868005961,0.70947364,78.386,78.35,12.34159573]
[1771868006162,0.70947364,78.379,78.342,0.71586433]
[1771868007287,0.70947364,78.359,78.331,0.71586433]
[1771868007498,0.70947364,78.367,78.34,12.34159573]
[1771868007783,3.69383402,78.399,78.305,5.36086188]
[1771868007784,0.70947364,78.385,78.351,0.71586433]
[1771868008579,0.70947364,78.385,78.35,12.34159573]
[1771868008883,0.70947364,78.379,78.343,12.76423168]
[1771868009182,0.70947364,78.379,78.344,0.71586433]
[1771868009366,0.70947364,78.379,78.35,12.34159573]
[1771868010790,12.34159573,78.37,78.34,12.34159573]
[1771868010994,0.70947364,78.369,78.34,12.34159573]
[1771868011987,12.75868228,78.378,78.351,0.71586433]
[1771868012687,3.69383402,78.399,78.35,12.34159573]
[1771868012688,12.75559013,78.397,78.37,13.05746006]
[1771868012863,12.75559013,78.397,78.371,0.71586433]
[1771868013069,12.75559013,78.397,78.35,12.34159573]
[1771868013070,0.70947364,78.389,78.35,12.34159573]
[1771868013283,12.34159573,78.38,78.35,12.34159573]
[1771868013483,0.70947364,78.369,78.34,12.34159573]
[1771868013686,0.70947364,78.369,78.325,44.68560484]
[1771868013687,0.70947364,78.396,78.36,12.34159573]
[1771868013992,0.70947364,78.389,78.35,12.34159573]
[1771868014992,0.70947364,78.387,78.35,12.34159573]
[1771868015374,0.70947364,78.387,78.351,0.66250652]
[1771868016180,0.70947364,78.387,78.36,12.34159573]
[1771868016381,0.70947364,78.387,78.351,0.66250652]
[1771868017378,0.70947364,78.379,78.343,0.66331415]
[1771868017586,0.70947364,78.379,78.344,12.76421934]
[1771868017889,0.70947364,78.379,78.35,12.34159573]
[1771868018283,44.6508305,78.386,78.351,0.663599]
[1771868018284,12.75738014,78.386,78.351,0.663599]
[1771868018587,12.75738014,78.386,78.344,12.76421934]
[1771868018588,12.75738014,78.386,78.36,12.34159573]
[1771868019089,3.69383402,78.419,78.344,44.67476769]
[1771868019090,0.70947364,78.396,78.37,12.34159573]
[1771868019993,0.70947364,78.394,78.323,0.66388057]
[1771868020198,0.70947364,78.379,78.34,13.0054763]
[1771868020574,0.70947364,78.379,78.341,0.66415891]
[1771868021590,0.70947364,78.377,78.341,0.66415891]
[1771868022394,0.70947364,78.369,78.326,0.66470604]
[1771868022576,0.70947364,78.359,78.33,12.34159573]
[1771868023092,0.70947364,78.359,78.331,0.66470604]
[1771868023279,0.70947364,78.386,78.351,0.6649749]
[1771868023485,0.70947364,78.386,78.36,12.34159573]
[1771868023696,50.99999188,78.432,78.37,12.34159573]
[1771868023697,0.70947364,78.393,78.37,12.34159573]
[1771868023900,0.70947364,78.408,78.37,12.34159573]
[1771868024302,0.70947364,78.408,78.371,0.66524067]
[1771868025087,0.70947364,78.408,78.361,12.76145021]
[1771868025088,0.70947364,78.408,78.38,12.34159573]
[1771868025275,44.6377329,78.409,78.381,0.66550339]
[1771868025474,44.6377329,78.409,78.39,12.34159573]
[1771868025698,0.70947364,78.419,78.38,12.34159573]
[1771868026079,0.70947364,78.419,78.381,0.66550339]
[1771868026276,0.70947364,78.419,78.39,13.00735882]
[1771868026715,12.75183307,78.421,78.39,13.00735882]
[1771868026997,13.46130671,78.421,78.4,12.34159573]
[1771868027377,13.46130671,78.421,78.39,0.66576309]
[1771868027378,12.74908525,78.437,78.41,12.2863414]
[1771868027581,0.70947364,78.438,78.42,12.2863414]
[1771868027809,12.74908525,78.437,78.41,12.2863414]
[1771868027984,13.50444327,78.437,78.41,12.2863414]
[1771868028180,0.75535802,78.436,78.41,12.2863414]
[1771868028999,0.75535802,78.436,78.4,12.2863414]
[1771868029177,0.75535802,78.429,78.39,12.95210449]
[1771868029500,0.75535802,78.419,78.39,0.66576309]
[1771868030002,0.75535802,78.417,78.39,0.66576309]
[1771868030400,0.75535802,78.409,78.39,0.66576309]
[1771868031098,12.2863414,78.4,78.37,12.2863414]
[1771868031303,12.2863414,78.4,78.309,51.07908596]
[1771868031304,0.75535802,78.399,78.36,12.2863414]
[1771868031481,0.75535802,78.389,78.36,12.2863414]
[1771868031687,0.75535802,78.389,78.36,12.95360125]
[1771868031990,12.75705465,78.388,78.36,12.95360125]
[1771868032499,12.75705465,78.388,78.328,3.69383402]
[1771868032500,12.75103602,78.425,78.38,12.2863414]
[1771868032684,0.75535802,78.406,78.38,12.2863414]
[1771868034200,12.75428862,78.405,78.38,12.2863414]
[1771868034407,0.75535802,78.404,78.373,12.75941237]
[1771868034583,0.75535802,78.404,78.38,12.2863414]
[1771868035104,0.75535802,78.404,78.373,12.75941237]
[1771868035481,0.75535802,78.404,78.37,12.2863414]
[1771868035686,12.75428862,78.405,78.36,12.2863414]
[1771868035687,0.75535802,78.399,78.36,12.2863414]
[1771868035986,0.75535802,78.399,78.361,0.66820157]
[1771868036286,0.75535802,78.399,78.352,12.76291607]
[1771868036287,0.75535802,78.399,78.373,0.66843028]
[1771868036495,12.75442473,78.405,78.38,12.2863414]
[1771868036688,12.75442473,78.405,78.381,0.66843028]
[1771868037093,12.75442473,78.405,78.38,12.2863414]
[1771868037295,0.75535802,78.404,78.373,0.66843028]
[1771868038701,0.75535802,78.402,78.374,12.75933345]
[1771868039595,12.75461398,78.403,78.38,12.2863414]
[1771868040107,12.75461398,78.403,78.381,0.66910077]
[1771868040302,0.75535802,78.41,78.374,12.75933345]
[1771868040303,12.75362967,78.41,78.39,12.2863414]
[1771868040508,310.1,78.468,78.39,12.2863414]
[1771868040509,0.75535802,78.426,78.393,0.66931916]
[1771868040889,0.75535802,78.426,78.392,12.75640371]
[1771868041090,0.75535802,78.409,78.38,12.2863414]
[1771868041401,0.75535802,78.409,78.377,0.66931916]
[1771868041603,0.75535802,78.409,78.38,12.2863414]
[1771868041803,0.75535802,78.399,78.36,12.2863414]
[1771868041998,0.75535802,78.399,78.361,0.66953503]
[1771868042204,0.75535802,78.399,78.37,12.2863414]
[1771868042707,0.75535802,78.397,78.36,12.95608983]
[1771868042907,0.75535802,78.389,78.352,0.66974843]
[1771868043109,0.75535802,78.389,78.332,5.36086188]
[1771868043110,0.75535802,78.389,78.361,0.66974843]
[1771868043513,0.75535802,78.396,78.361,0.66974843]
[1771868045900,0.75535802,78.394,78.363,0.67037401]
[1771868047414,0.75535802,78.394,78.36,12.2863414]
[1771868047610,0.75535802,78.394,78.361,0.67077919]
[1771868048714,0.75535802,78.392,78.363,0.67097829]
[1771868049724,0.75535802,78.389,78.363,0.67097829]
[1771868049899,0.75535802,78.389,78.35,12.2863414]
[1771868050100,0.75535802,78.389,78.36,12.2863414]
[1771868050301,0.75535802,78.389,78.361,0.67136967]
[1771868050895,0.75535802,78.379,78.341,0.67136967]
[1771868051093,44.64969127,78.388,78.341,13.4360778]
[1771868051094,0.75535802,78.369,78.341,13.4360778]
[1771868051297,0.75535802,78.376,78.342,0.67156199]
[1771868053616,13.51452867,78.375,78.344,0.67194003]
[1771868053821,0.75535802,78.374,78.344,0.67194003]
[1771868054522,0.75535802,78.374,78.35,12.2863414]
[1771868055002,12.2863414,78.38,78.35,12.2863414]
[1771868055003,0.75535802,78.381,78.351,0.6721258]
[1771868055524,0.75535802,78.379,78.351,0.6721258]
[1771868056620,0.75535802,78.401,78.371,0.67249097]
[1771868056925,0.75535802,78.401,78.38,12.2863414]
[1771868057125,0.75535802,78.389,78.35,12.2863414]
[1771868057307,0.75535802,78.389,78.301,102.2]
[1771868057308,0.75535802,78.379,78.341,0.67267041]
[1771868058622,0.70968293,78.377,78.342,12.76454519]
[1771868058826,0.70968293,78.377,78.342,13.43756832]
[1771868059229,0.70968293,78.377,78.343,0.67302313]
[1771868059520,0.70968293,78.377,78.336,0.67319646]
[1771868059764,0.70968293,78.369,78.34,12.2863414]
[1771868059909,0.70968293,78.369,78.34,12.95953786]
[1771868060619,0.70968293,78.369,78.337,13.43889708]
[1771868060821,0.73150691,78.368,78.341,0.67353717]
[1771868061024,0.73150691,78.376,78.341,0.67353717]
[1771868061325,0.73150691,78.369,78.341,0.67353717]
[1771868061727,0.73150691,78.369,78.34,12.2863414]
[1771868062415,0.73150691,78.369,78.341,0.6738701]
[1771868062812,0.73150691,78.369,78.34,12.2863414]
[1771868063225,13.49181724,78.368,78.34,12.9603751]
[1771868063719,0.73150691,78.367,78.34,12.9603751]
[1771868064327,0.73150691,78.365,78.34,12.9603751]
[1771868065424,0.73150691,78.363,78.34,0.6740337]
[1771868065631,0.73150691,78.363,78.34,12.9603751]
[1771868065835,0.73150691,78.363,78.33,12.2863414]
[1771868066036,0.73150691,78.363,78.331,12.76633772]
[1771868066233,12.76096166,78.364,78.322,13.44207828]
[1771868066234,0.73150691,78.359,78.322,13.44207828]
[1771868066418,0.73150691,78.359,78.323,0.67451332]
[1771868066616,0.73150691,78.359,78.304,5.36086188]
[1771868066617,0.73150691,78.339,78.267,108.60700662]
[1771868066922,0.73150691,78.339,78.301,0.67451332]
[1771868067418,0.73150691,78.337,78.302,12.77106587]
[1771868067634,0.73150691,78.329,78.293,12.77253394]
[1771868067824,44.67818937,78.338,78.293,12.77253394]
[1771868067825,0.73150691,78.319,78.293,12.77253394]
[1771868068835,0.73150691,78.319,78.294,0.67482395]
[1771868069314,0.73150691,78.318,78.286,0.6749766]
[1771868069721,0.73150691,78.318,78.29,12.2863414]
[1771868070236,0.73150691,78.318,78.273,31.93923543]
[1771868070237,0.73150691,78.318,78.281,12.7744029]
[1771868070534,0.73150691,78.318,78.282,0.67512749]
[1771868070909,0.73150691,78.316,78.283,12.77416552]
[1771868071110,0.73150691,78.316,78.29,12.2863414]
[1771868071736,63.82592242,78.339,78.283,12.77416552]
[1771868071737,12.2863414,78.34,78.31,12.2863414]
[1771868072433,0.12024525,78.314,78.31,12.2863414]
[1771868072625,12.2863414,78.34,78.309,0.7287159]
[1771868073026,12.2863414,78.34,78.3,12.2863414]
[1771868073027,44.67191667,78.349,78.312,0.7287159]
[1771868073226,44.67191667,78.349,78.31,12.2863414]
[1771868073227,12.2863414,78.34,78.31,12.2863414]
[1771868073432,12.2863414,78.34,78.301,0.7287159]
[1771868073738,0.73150691,78.339,78.301,0.7287159]
[1771868074441,0.73150691,78.329,78.301,0.7287159]
[1771868074622,44.67191667,78.349,78.285,0.7287159]
[1771868074623,0.73150691,78.319,78.285,0.7287159]
[1771868075029,0.73150691,78.319,78.285,13.50252189]
[1771868075339,13.01784831,78.31,78.285,13.50252189]
[1771868075538,0.73150691,78.309,78.285,13.50252189]
[1771868076628,12.77008734,78.308,78.285,13.50252189]
[1771868078041,0.73150691,78.307,78.285,0.7287159]
[1771868078230,0.73150691,78.307,78.285,13.50250774]
[1771868079039,0.73150691,78.307,78.286,0.7287159]
[1771868079243,0.73150691,78.318,78.291,0.7287159]
[1771868079442,12.76778857,78.323,78.291,0.7287159]
[1771868079849,0.73150691,78.319,78.282,0.7287159]
[1771868080045,0.73150691,78.309,78.282,0.7287159]
[1771868080551,0.73150691,78.309,78.282,13.50302436]
[1771868080762,44.68959881,78.318,78.253,0.7287159]
[1771868080763,0.73150691,78.289,78.253,0.7287159]
[1771868080928,0.73150691,78.289,78.261,0.7287159]
[1771868081126,0.73150691,78.289,78.26,12.2863414]
[1771868081127,12.2863414,78.3,78.251,9.85210323]
[1771868081328,12.2863414,78.3,78.215,108.66086486]
[1771868081329,12.2863414,78.26,78.2,0.1]
[1771868081558,12.2863414,78.26,78.221,0.7287159]
[1771868081843,12.2863414,78.28,78.24,12.2863414]
[1771868082049,12.2863414,78.27,78.231,0.7287159]
[1771868082270,12.2863414,78.27,78.22,0.63]
[1771868082271,249.08350042,78.287,78.22,0.63]
[1771868082452,12.2863414,78.27,78.231,0.7287159]
[1771868082659,12.2863414,78.28,78.241,0.7287159]
[1771868082835,44.70729494,78.287,78.224,0.7287159]
[1771868082836,12.2863414,78.26,78.224,0.7287159]
[1771868083145,0.73150691,78.259,78.224,0.7287159]
[1771868083347,12.2863414,78.25,78.224,0.7287159]
[1771868083551,0.73150691,78.259,78.224,0.7287159]
[1771868083934,44.71015047,78.282,78.224,0.7287159]
[1771868084146,44.71015047,78.282,78.231,0.7287159]
[1771868084147,13.01784831,78.27,78.231,0.7287159]
[1771868084443,0.73150691,78.269,78.231,0.7287159]
[1771868084663,44.71015047,78.282,78.231,0.7287159]
[1771868084664,12.2863414,78.25,78.231,0.7287159]
[1771868084945,12.2863414,78.25,78.221,0.7287159]
[1771868085644,0.73150691,78.249,78.221,0.7287159]
[1771868085841,12.2863414,78.25,78.221,0.7287159]
[1771868086154,12.77971603,78.249,78.221,0.7287159]
[1771868087147,12.77971603,78.249,78.202,0.7287159]
[1771868087148,12.2863414,78.24,78.202,0.7287159]
[1771868087352,0.73150691,78.248,78.211,0.7287159]
[1771868087548,12.2863414,78.24,78.211,0.7287159]
[1771868088044,12.78151281,78.238,78.211,0.7287159]
[1771868089338,0.74959559,78.237,78.211,0.7287159]
[1771868090636,12.78183956,78.236,78.211,0.7287159]
[1771868091035,12.34805767,78.23,78.211,0.7287159]
[1771868091441,13.53143515,78.236,78.211,0.7287159]
[1771868092744,45.48603405,78.236,78.211,0.7287159]
[1771868093656,13.53143515,78.236,78.211,0.7287159]
[1771868093867,12.78183956,78.236,78.211,0.7287159]
[1771868095456,12.78183956,78.236,78.211,0.72293734]
[1771868097360,0.74959559,78.254,78.221,0.72293734]
[1771868097662,0.74959559,78.249,78.223,0.72293734]
[1771868098358,0.74959559,78.256,78.223,0.72293734]
[1771868098564,12.34805767,78.26,78.223,0.72293734]
[1771868098761,12.34805767,78.26,78.221,12.78421154]
[1771868098762,13.09765326,78.27,78.231,0.72293734]
[1771868098948,13.09765326,78.27,78.241,0.72293734]
[1771868099146,0.74959559,78.269,78.241,0.72293734]
[1771868099550,12.77661368,78.268,78.241,0.72293734]
[1771868099746,0.74959559,78.269,78.234,0.72293734]
[1771868099953,13.09765326,78.26,78.234,0.72293734]
[1771868100162,0.74959559,78.268,78.234,0.72293734]
[1771868100659,0.74959559,78.276,78.241,0.72293734]
[1771868100960,0.74959559,78.276,78.219,5.36086188]
[1771868100961,12.34805767,78.28,78.251,0.72293734]
[1771868101344,18.46488313,78.308,78.21,210.97046411]
[1771868101345,0.74959559,78.298,78.261,0.72293734]
[1771868101545,3.69383402,78.316,78.239,5.36086188]
[1771868101546,0.74959559,78.317,78.281,0.72293734]
[1771868101856,12.76878287,78.316,78.283,0.72293734]
[1771868102057,12.34805767,78.31,78.283,0.72293734]
[1771868102245,0.74959559,78.326,78.291,0.72293734]
[1771868102451,12.7665087,78.33,78.301,0.72293734]